[Event "16th Marseille Festival 2023"]
[Site "Marseille"]
[Date "2023.12.30"]
[Round "9.2"]
[White "Philippe, Guillaume"]
[Black "Bilych, Olexiy"]
[Result "1-0"]
[WhiteElo "2334"]
[BlackElo "2433"]
[PlyCount "145"]
[EventDate "2023.12.30"]
[EventType "swiss"]
[EventCountry "FRA"]
[TimeControl "5400+30"]

1. Nf3 {[%emt 0:00:11]} d5 {[%emt 0:00:08]} 2. e3 {[%emt 0:00:03]} Nf6 {[%emt 0:00:08]} 3. c4 {[%emt 0:00:04]} e6 {[%emt 0:00:05]} 4. b3 {[%emt 0:00:21]} Bd6 {[%emt 0:00:12]} 5. Bb2 {[%emt 0:00:07]} O-O {[%emt 0:00:09]} 6. g3 {[%emt 0:02:50]} b6 {[%emt 0:00:09]} 7. Bg2 {[%emt 0:00:15]} Bb7 {[%emt 0:00:04]} 8. O-O {[%emt 0:00:51]} Nbd7 {[%emt 0:00:15]} 9. cxd5 {[%emt 0:01:30]} exd5 {[%emt 0:00:10]} 10. Nc3 {[%emt 0:00:11]} a6 {[%emt 0:00:12]} 11. Ne2 {[%emt 0:02:39]} Re8 {[%emt 0:01:36]} 12. Qc2 {[%emt 0:05:13]} Rc8 {[%emt 0:05:44]} 13. Rac1 {[%emt 0:03:36]} c5 {[%emt 0:02:33]} 14. Qb1 {[%emt 0:00:05]} b5 {[%emt 0:10:28]} 15. Nf4 {[%emt 0:00:34]} b4 {[%emt 0:12:57]} 16. Rfd1 {[%emt 0:01:20]} Qb6 {[%emt 0:01:41]} 17. Qf5 {[%emt 0:04:02]} d4 {[%emt 0:06:33]} 18. Nh5 {[%emt 0:02:56]} Be4 {[%emt 0:11:38]} 19. Nxf6+ {[%emt 0:00:21]} Nxf6 {[%emt 0:00:07]} 20. Qh3 {[%emt 0:00:52]} Qb7 {[%emt 0:08:14]} 21. Nh4 {[%emt 0:04:18]} Bxg2 {[%emt 0:01:54]} 22. Qxg2 {[%emt 0:00:17]} Qxg2+ {[%emt 0:03:04]} 23. Kxg2 {[%emt 0:00:23]} dxe3 {[%emt 0:00:03]} 24. dxe3 {[%emt 0:00:14]} Be5 {[%emt 0:00:04]} 25. Bxe5 {[%emt 0:02:55]} Rxe5 {[%emt 0:00:03]} 26. Rd6 {[%emt 0:00:04]} Re6 {[%emt 0:00:20]} 27. Nf5 {[%emt 0:00:19]} Rxd6 {[%emt 0:02:06]} 28. Nxd6 {[%emt 0:00:27]} Rc6 {[%emt 0:00:29]} 29. Nb7 {[%emt 0:02:08]} Ne4 {[%emt 0:00:47]} 30. Rc4 {[%emt 0:01:14]} f5 {[%emt 0:00:05]} 31. f3 {[%emt 0:03:02]} Nc3 {[%emt 0:00:15]} 32. Rxc5 {[%emt 0:00:44]} Rxc5 {[%emt 0:02:38]} 33. Nxc5 {[%emt 0:00:40]} a5 {[%emt 0:00:01]} 34. Kf2 {[%emt 0:02:23]} Kf7 {[%emt 0:01:14]} 35. Ke1 {[%emt 0:02:24]} Ke7 {[%emt 0:02:39]} 36. Kd2 {[%emt 0:00:28]} Kd6 {[%emt 0:04:21]} 37. Nb7+ {[%emt 0:00:21]} Kd5 {[%emt 0:00:05]} 38. a4 {[%emt 0:02:13]} g5 {[%emt 0:00:02]} 39. Nxa5 {[%emt 0:10:22]} g4 {[%emt 0:00:06]} 40. fxg4 {[%emt 0:00:07]} Ne4+ {[%emt 0:00:05]} 41. Ke2 {[%emt 0:03:36]} fxg4 {[%emt 0:00:05]} 42. Nc4 {[%emt 0:00:31]} Nc5 {[%emt 0:00:19]} 43. Nd2 {[%emt 0:00:22]} h5 {[%emt 0:00:05]} 44. e4+ {[%emt 0:02:29]} Kd4 {[%emt 0:00:04]} 45. a5 {[%emt 0:00:21]} Na6 {[%emt 0:01:38]} 46. e5 {[%emt 0:05:12]} Kxe5 {[%emt 0:00:28]} 47. Kd3 {[%emt 0:04:16]} Kd5 {[%emt 0:00:05]} 48. Ne4 {[%emt 0:00:42]} Ke5 {[%emt 0:00:07]} 49. Ke3 {[%emt 0:04:26]} Kd5 {[%emt 0:00:45]} 50. Nf6+ {[%emt 0:03:17]} Kc6 {[%emt 0:00:42]} 51. Nxh5 {[%emt 0:04:16]} Nc5 {[%emt 0:01:01]} 52. Nf6 {[%emt 0:00:24]} Nxb3 {[%emt 0:02:07]} 53. a6 {[%emt 0:00:13]} Nc5 {[%emt 0:01:21]} 54. a7 {[%emt 0:00:27]} Kb7 {[%emt 0:00:04]} 55. Kd4 {[%emt 0:03:12]} b3 {[%emt 0:00:23]} 56. Kc3 {[%emt 0:00:35]} Kxa7 {[%emt 0:00:24]} 57. Nxg4 {[%emt 0:00:04]} Kb6 {[%emt 0:00:13]} 58. Nf2 {[%emt 0:02:34]} Kb5 {[%emt 0:10:07]} 59. Nd1 {[%emt 0:09:42]} Ka4 {[%emt 0:03:04]} 60. Kd4 {[%emt 0:01:17]} Ne6+ {[%emt 0:00:43]} 61. Kd5 {[%emt 0:00:32]} Nc7+ {[%emt 0:01:12]} 62. Ke5 {[%emt 0:01:58]} Kb4 {[%emt 0:00:51]} 63. h4 {[%emt 0:00:15]} Nb5 {[%emt 0:00:18]} 64. h5 {[%emt 0:01:05]} Nc3 {[%emt 0:00:12]} 65. h6 {[%emt 0:02:35]} Nxd1 {[%emt 0:00:26]} 66. h7 {[%emt 0:00:07]} b2 {[%emt 0:01:13]} 67. h8=Q {[%emt 0:06:28]} Kb3 {[%emt 0:00:37]} 68. Qh7 {[%emt 0:00:00]} Kc3 {[%emt 0:01:00]} 69. Qe4 {[%emt 0:00:00]} Kd2 {[%emt 0:01:13]} 70. g4 {[%emt 0:00:00]} Nf2 {[%emt 0:00:18]} 71. Qb1 {[%emt 0:00:00]} Kc3 {[%emt 0:00:52]} 72. g5 {[%emt 0:00:04]} Nd3+ {[%emt 0:00:08]} 73. Kf5 {[%emt 0:00:26]} 1-0

[Event "16th Marseille Festival 2023"]
[Site "Marseille"]
[Date "2023.12.30"]
[Round "9.3"]
[White "Petrosyan, Armen"]
[Black "Lamard, Guillaume"]
[Result "0-1"]
[WhiteElo "2368"]
[BlackElo "2497"]
[PlyCount "112"]
[EventDate "2023.12.30"]
[EventType "swiss"]
[EventCountry "FRA"]
[TimeControl "5400+30"]

1. e4 {[%emt 0:00:04]} e5 {[%emt 0:00:03]} 2. Nf3 {[%emt 0:00:06]} Nc6 {[%emt 0:00:03]} 3. Bb5 {[%emt 0:00:06]} a6 {[%emt 0:00:04]} 4. Ba4 {[%emt 0:00:07]} Nf6 {[%emt 0:00:04]} 5. O-O {[%emt 0:00:07]} d6 {[%emt 0:00:03]} 6. c3 {[%emt 0:01:42]} Bd7 {[%emt 0:00:15]} 7. Re1 {[%emt 0:02:23]} g6 {[%emt 0:00:06]} 8. d4 {[%emt 0:00:16]} Bg7 {[%emt 0:00:03]} 9. h3 {[%emt 0:04:34]} O-O {[%emt 0:00:06]} 10. Bc2 {[%emt 0:00:06]} Nh5 {[%emt 0:00:37]} 11. Bg5 {[%emt 0:02:04]} Qe8 {[%emt 0:00:05]} 12. Na3 {[%emt 0:07:33]} b5 {[%emt 0:00:19]} 13. Bb1 {[%emt 0:01:47]} h6 {[%emt 0:03:14]} 14. Be3 {[%emt 0:04:37]} exd4 {[%emt 0:11:11]} 15. cxd4 {[%emt 0:00:13]} Qc8 {[%emt 0:02:47]} 16. Qd2 {[%emt 0:12:45]} Kh7 {[%emt 0:01:13]} 17. Nc2 {[%emt 0:00:25]} Ne7 {[%emt 0:00:39]} 18. Nh2 {[%emt 0:02:47]} f5 {[%emt 0:06:07]} 19. f3 {[%emt 0:02:00]} c5 {[%emt 0:09:30]} 20. g4 {[%emt 0:18:41]} f4 {[%emt 0:10:27]} 21. Bf2 {[%emt 0:01:03]} Ng3 {[%emt 0:00:05]} 22. a4 {[%emt 0:06:41]} bxa4 {[%emt 0:09:32]} 23. dxc5 {[%emt 0:02:01]} dxc5 {[%emt 0:01:42]} 24. Na3 {[%emt 0:00:35]} Bb5 {[%emt 0:02:07]} 25. Nxb5 {[%emt 0:08:48]} axb5 {[%emt 0:00:05]} 26. Qd6 {[%emt 0:00:04]} Nc6 {[%emt 0:07:02]} 27. e5 {[%emt 0:04:47]} Qe8 {[%emt 0:01:27]} 28. Qxc5 {[%emt 0:00:23]} Nxe5 {[%emt 0:00:34]} 29. Ra3 {[%emt 0:04:14]} Rc8 {[%emt 0:00:54]} 30. Qd6 {[%emt 0:01:50]} Rd8 {[%emt 0:05:44]} 31. Qb4 {[%emt 0:02:06]} Qc6 {[%emt 0:05:32]} 32. Rc3 {[%emt 0:01:21]} Nc4 {[%emt 0:00:04]} 33. Rd3 {[%emt 0:01:15]} Rxd3 {[%emt 0:06:28]} 34. Bxd3 {[%emt 0:00:04]} Rf7 {[%emt 0:04:10]} 35. h4 {[%emt 0:02:07]} Ne5 {[%emt 0:00:42]} 36. Rxe5 {[%emt 0:01:42]} Bxe5 {[%emt 0:00:05]} 37. h5 {[%emt 0:00:08]} Kg7 {[%emt 0:02:26]} 38. hxg6 {[%emt 0:02:31]} Rc7 {[%emt 0:00:28]} 39. Kg2 {[%emt 0:01:25]} Qd5 {[%emt 0:01:11]} 40. Bf5 {[%emt 0:03:58]} Nxf5 {[%emt 0:03:06]} 41. gxf5 {[%emt 0:00:04]} h5 {[%emt 0:00:06]} 42. Nf1 {[%emt 0:00:46]} Rd7 {[%emt 0:01:43]} 43. Bh4 {[%emt 0:00:23]} Qc4 {[%emt 0:01:49]} 44. Qe1 {[%emt 0:00:19]} Qd4 {[%emt 0:00:44]} 45. Kh3 {[%emt 0:00:53]} b4 {[%emt 0:01:57]} 46. Nd2 {[%emt 0:00:20]} Qe3 {[%emt 0:00:19]} 47. Nc4 {[%emt 0:00:52]} Qxe1 {[%emt 0:03:52]} 48. Bxe1 {[%emt 0:00:03]} Bf6 {[%emt 0:01:43]} 49. Bxb4 {[%emt 0:00:11]} Rd4 {[%emt 0:00:08]} 50. Nd6 {[%emt 0:00:09]} Rxb4 {[%emt 0:00:51]} 51. Ne8+ {[%emt 0:00:04]} Kh6 {[%emt 0:00:15]} 52. Nxf6 {[%emt 0:00:03]} Rxb2 {[%emt 0:00:22]} 53. Ng8+ {[%emt 0:01:19]} Kg7 {[%emt 0:00:12]} 54. Ne7 {[%emt 0:00:04]} a3 {[%emt 0:00:15]} 55. Kh4 {[%emt 0:00:08]} a2 {[%emt 0:00:17]} 56. Kg5 {[%emt 0:00:04]} Rg2+ {[%emt 0:00:08]} 0-1

[Event "16th Marseille Festival 2023"]
[Site "Marseille"]
[Date "2023.12.30"]
[Round "9.4"]
[White "Baroyan, Davit"]
[Black "Girel, Joseph"]
[Result "0-1"]
[WhiteElo "2203"]
[BlackElo "2495"]
[PlyCount "56"]
[EventDate "2023.12.30"]
[EventType "swiss"]
[EventCountry "FRA"]
[TimeControl "5400+30"]

1. Nf3 Nf6 2. g3 b6 3. Bg2 Bb7 4. b3 g6 5. c4 Bg7 6. Bb2 O-O 7. O-O e6 8. d4 Na6 9. Nc3 c5 10. d5 exd5 11. Nxd5 Bxd5 12. cxd5 d6 13. e4 Re8 14. Re1 Nc7 15. Qc2 Nd7 16. Rad1 Rb8 17. Bh3 Ne5 18. Nxe5 Bxe5 19. f4 Bxb2 20. Qxb2 Nb5 21. e5 Nd4 22. Rxd4 cxd4 23. Qxd4 Qc7 24. e6 Qc5 25. Qxc5 bxc5 26. Re4 Rb4 27. Rxb4 cxb4 28. Kf2 {[%emt 0:14:00]} f5 {[%emt 0:14:00]} 0-1

[Event "16th Marseille Festival 2023"]
[Site "Marseille"]
[Date "2023.12.30"]
[Round "9.5"]
[White "Pichon, Ewen"]
[Black "Delaplace, Mathias"]
[Result "1/2-1/2"]
[WhiteElo "2274"]
[BlackElo "1956"]
[PlyCount "51"]
[EventDate "2023.12.30"]
[EventType "swiss"]
[EventCountry "FRA"]
[TimeControl "5400+30"]

1. d4 {[%emt 0:00:02]} Nf6 {[%emt 0:00:47]} 2. c4 {[%emt 0:01:16]} g6 {[%emt 0:01:36]} 3. Nc3 {[%emt 0:00:16]} Bg7 {[%emt 0:00:04]} 4. e4 {[%emt 0:00:05]} d6 {[%emt 0:00:03]} 5. Be2 {[%emt 0:00:07]} O-O {[%emt 0:00:35]} 6. Be3 {[%emt 0:00:09]} c5 {[%emt 0:00:45]} 7. d5 {[%emt 0:00:15]} e6 {[%emt 0:00:08]} 8. Nf3 {[%emt 0:00:03]} exd5 {[%emt 0:00:05]} 9. cxd5 {[%emt 0:00:01]} b5 {[%emt 0:00:20]} 10. e5 {[%emt 0:00:02]} dxe5 {[%emt 0:00:04]} 11. Bxc5 {[%emt 0:00:03]} Re8 {[%emt 0:00:05]} 12. Bxb5 {[%emt 0:00:03]} Nbd7 {[%emt 0:00:04]} 13. Be3 {[%emt 0:00:02]} Ng4 {[%emt 0:05:32]} 14. O-O {[%emt 0:00:11]} e4 {[%emt 0:12:58]} 15. Nd4 {[%emt 0:03:29]} Qh4 {[%emt 0:01:58]} 16. Bf4 {[%emt 0:12:32]} Be5 {[%emt 0:11:10]} 17. Bxe5 {[%emt 0:00:29]} Rxe5 {[%emt 0:00:33]} 18. h3 {[%emt 0:00:17]} Ndf6 {[%emt 0:04:56]} 19. Nc6 {[%emt 0:02:15]} Rg5 {[%emt 0:03:54]} 20. Ne7+ {[%emt 0:04:52]} Kg7 {[%emt 0:09:32]} 21. Nxc8 {[%emt 0:03:06]} Ne5 {[%emt 0:06:27]} 22. Kh1 {[%emt 0:01:22]} Rxg2 {[%emt 0:07:31]} 23. Kxg2 {[%emt 0:02:13]} Qg5+ {[%emt 0:00:23]} 24. Kh1 {[%emt 0:00:12]} Qh4 {[%emt 0:00:28]} 25. Kg2 {[%emt 0:16:48]} Qg5+ {[%emt 0:00:32]} 26. Kh1 {[%emt 0:00:55]} 1/2-1/2

[Event "16th Marseille Festival 2023"]
[Site "Marseille"]
[Date "2023.12.30"]
[Round "9.6"]
[White "Malka, Samuel"]
[Black "Bonelli Maestracci, Pierre Joseph"]
[Result "1-0"]
[WhiteElo "2201"]
[BlackElo "2075"]
[PlyCount "99"]
[EventDate "2023.12.30"]
[EventType "swiss"]
[EventCountry "FRA"]
[TimeControl "5400+30"]

1. d4 {[%emt 0:00:58]} Nf6 {[%emt 0:00:06]} 2. c4 {[%emt 0:00:38]} g6 {[%emt 0:00:01]} 3. Nc3 {[%emt 0:00:04]} d5 {[%emt 0:00:04]} 4. cxd5 {[%emt 0:00:45]} Nxd5 {[%emt 0:00:15]} 5. e4 {[%emt 0:00:16]} Nxc3 {[%emt 0:00:02]} 6. bxc3 {[%emt 0:00:09]} Bg7 {[%emt 0:00:04]} 7. Nf3 {[%emt 0:00:28]} c5 {[%emt 0:00:01]} 8. Bb5+ {[%emt 0:00:01]} Nc6 {[%emt 0:00:03]} 9. d5 {[%emt 0:00:02]} Qa5 {[%emt 0:01:13]} 10. Rb1 {[%emt 0:07:39]} Bxc3+ {[%emt 0:02:35]} 11. Bd2 {[%emt 0:01:11]} a6 {[%emt 0:00:10]} 12. Ba4 {[%emt 0:00:26]} b5 {[%emt 0:12:10]} 13. dxc6 {[%emt 0:00:12]} bxa4 {[%emt 0:01:26]} 14. O-O {[%emt 0:07:32]} Bxd2 {[%emt 0:06:53]} 15. Nxd2 {[%emt 0:00:12]} Be6 {[%emt 0:00:23]} 16. Qc1 {[%emt 0:00:58]} O-O {[%emt 0:02:23]} 17. Nf3 {[%emt 0:00:08]} Ra7 {[%emt 0:15:33]} 18. Qh6 {[%emt 0:12:29]} f6 {[%emt 0:00:29]} 19. Nh4 {[%emt 0:21:12]} Bf7 {[%emt 0:08:10]} 20. f4 {[%emt 0:06:28]} Rd8 {[%emt 0:03:49]} 21. Nf3 {[%emt 0:12:30]} Bxa2 {[%emt 0:09:34]} 22. Rbd1 {[%emt 0:10:07]} Rxd1 {[%emt 0:02:52]} 23. Rxd1 {[%emt 0:00:01]} Bb3 {[%emt 0:01:45]} 24. Rf1 {[%emt 0:04:02]} Qb4 {[%emt 0:03:20]} 25. f5 {[%emt 0:01:23]} Qxe4 {[%emt 0:01:38]} 26. fxg6 {[%emt 0:00:01]} hxg6 {[%emt 0:00:55]} 27. Re1 {[%emt 0:03:23]} Qf5 {[%emt 0:03:42]} 28. Qd2 {[%emt 0:00:02]} Qd5 {[%emt 0:01:09]} 29. Qh6 {[%emt 0:03:26]} Bc2 {[%emt 0:02:12]} 30. Qf4 {[%emt 0:08:47]} e5 {[%emt 0:07:48]} 31. Qxf6 {[%emt 0:00:00]} Rf7 {[%emt 0:01:21]} 32. Qg5 {[%emt 0:00:00]} Qxc6 {[%emt 0:01:28]} 33. Nxe5 {[%emt 0:01:30]} Qe6 {[%emt 0:01:11]} 34. Qd2 {[%emt 0:00:00]} Rf5 {[%emt 0:00:46]} 35. Ng4 {[%emt 0:00:00]} Rd5 {[%emt 0:00:52]} 36. Nf6+ {[%emt 0:00:00]} Qxf6 {[%emt 0:00:25]} 37. Qxd5+ {[%emt 0:00:00]} Kg7 {[%emt 0:00:35]} 38. Qxc5 {[%emt 0:00:00]} Bb3 {[%emt 0:00:12]} 39. Rf1 {[%emt 0:01:01]} Qe6 {[%emt 0:00:22]} 40. Qc3+ {[%emt 0:00:36]} Kh7 {[%emt 0:01:47]} 41. Qc7+ {[%emt 0:00:10]} Kh6 {[%emt 0:00:20]} 42. Qf4+ {[%emt 0:01:11]} Kh7 {[%emt 0:00:35]} 43. h3 {[%emt 0:00:19]} a3 {[%emt 0:01:34]} 44. Qc7+ {[%emt 0:00:37]} Kg8 {[%emt 0:00:28]} 45. Qd8+ {[%emt 0:00:36]} Kh7 {[%emt 0:01:19]} 46. Qh4+ {[%emt 0:00:06]} Kg7 {[%emt 0:00:55]} 47. Qd4+ {[%emt 0:00:12]} Kh7 {[%emt 0:01:01]} 48. Rf8 {[%emt 0:01:20]} Kh6 {[%emt 0:00:53]} 49. Rh8+ {[%emt 0:00:43]} Kg5 {[%emt 0:00:13]} 50. h4+ {[%emt 0:00:18]} 1-0

[Event "16th Marseille Festival 2023"]
[Site "Marseille"]
[Date "2023.12.30"]
[Round "9.7"]
[White "Adinolfi, Vincenzo"]
[Black "Charlier, Antoine"]
[Result "1/2-1/2"]
[WhiteElo "1957"]
[BlackElo "2147"]
[PlyCount "104"]
[EventDate "2023.12.30"]
[EventType "swiss"]
[EventCountry "FRA"]
[TimeControl "5400+30"]

1. Nf3 {[%emt 0:00:03]} d5 {[%emt 0:00:41]} 2. g3 {[%emt 0:00:06]} Nf6 {[%emt 0:00:15]} 3. Bg2 {[%emt 0:00:05]} Bf5 {[%emt 0:00:41]} 4. d3 {[%emt 0:00:09]} h6 {[%emt 0:00:40]} 5. O-O {[%emt 0:00:20]} e6 {[%emt 0:00:08]} 6. Nbd2 {[%emt 0:00:14]} Nbd7 {[%emt 0:02:49]} 7. Re1 {[%emt 0:06:03]} Be7 {[%emt 0:03:38]} 8. e4 {[%emt 0:02:57]} dxe4 {[%emt 0:01:30]} 9. dxe4 {[%emt 0:00:13]} Bh7 {[%emt 0:00:52]} 10. e5 {[%emt 0:02:27]} Nd5 {[%emt 0:00:22]} 11. c3 {[%emt 0:00:22]} O-O {[%emt 0:03:19]} 12. Ne4 {[%emt 0:03:26]} Nc5 {[%emt 0:07:35]} 13. Nd4 {[%emt 0:07:34]} Kh8 {[%emt 0:27:57]} 14. Qe2 {[%emt 0:10:38]} Nd7 {[%emt 0:08:12]} 15. f4 {[%emt 0:07:05]} Nc5 {[%emt 0:11:12]} 16. Rd1 {[%emt 0:04:08]} Nxe4 {[%emt 0:01:31]} 17. Bxe4 {[%emt 0:00:05]} c5 {[%emt 0:02:14]} 18. Nb5 {[%emt 0:06:06]} Bxe4 {[%emt 0:14:04]} 19. Qxe4 {[%emt 0:00:16]} Qb6 {[%emt 0:01:36]} 20. c4 {[%emt 0:01:39]} Nc7 {[%emt 0:00:42]} 21. Nxc7 {[%emt 0:05:57]} Qxc7 {[%emt 0:00:02]} 22. Be3 {[%emt 0:00:12]} Rad8 {[%emt 0:00:36]} 23. Kf2 {[%emt 0:00:10]} Rd7 {[%emt 0:01:22]} 24. Ke2 {[%emt 0:00:21]} Rfd8 {[%emt 0:00:33]} 25. b3 {[%emt 0:00:16]} Qa5 {[%emt 0:01:41]} 26. Qc2 {[%emt 0:00:15]} Qa6 {[%emt 0:03:06]} 27. Rxd7 {[%emt 0:00:21]} Rxd7 {[%emt 0:00:01]} 28. Qe4 {[%emt 0:00:08]} f5 {[%emt 0:00:49]} 29. Qh1 {[%emt 0:01:52]} Kg8 {[%emt 0:01:18]} 30. h4 {[%emt 0:02:14]} h5 {[%emt 0:00:55]} 31. Qg1 {[%emt 0:01:24]} Kf7 {[%emt 0:02:33]} 32. a4 {[%emt 0:07:07]} Qb6 {[%emt 0:00:48]} 33. Rb1 {[%emt 0:00:20]} Qb4 {[%emt 0:01:39]} 34. Qe1 {[%emt 0:00:18]} Qb6 {[%emt 0:01:07]} 35. Qh1 {[%emt 0:02:33]} a6 {[%emt 0:00:29]} 36. Qg1 {[%emt 0:00:24]} Ke8 {[%emt 0:00:44]} 37. Qh1 {[%emt 0:00:17]} g6 {[%emt 0:00:45]} 38. Qg1 {[%emt 0:00:08]} Qc7 {[%emt 0:00:27]} 39. Rd1 {[%emt 0:01:02]} Rxd1 {[%emt 0:00:31]} 40. Qxd1 {[%emt 0:00:11]} Qc6 {[%emt 0:00:01]} 41. Qd3 {[%emt 0:00:28]} Qh1 {[%emt 0:00:41]} 42. Bf2 {[%emt 0:00:13]} Qa1 {[%emt 0:00:38]} 43. Qf3 {[%emt 0:00:13]} Qb2+ {[%emt 0:00:43]} 44. Kf1 {[%emt 0:00:07]} Qb1+ {[%emt 0:00:28]} 45. Kg2 {[%emt 0:00:15]} b6 {[%emt 0:00:01]} 46. Qc6+ {[%emt 0:00:46]} Kf7 {[%emt 0:00:01]} 47. Qxb6 {[%emt 0:00:17]} Qe4+ {[%emt 0:00:02]} 48. Kh2 {[%emt 0:00:44]} Qc2 {[%emt 0:01:08]} 49. Kg2 {[%emt 0:03:22]} Qe4+ {[%emt 0:00:28]} 50. Kh2 {[%emt 0:00:16]} Qc2 {[%emt 0:01:20]} 51. Kg2 {[%emt 0:00:08]} Qe4+ {[%emt 0:00:30]} 52. Kh2 {[%emt 0:00:06]} Qc2 {[%emt 0:00:32]} 1/2-1/2

[Event "16th Marseille Festival 2023"]
[Site "Marseille"]
[Date "2023.12.30"]
[Round "9.8"]
[White "Le Roy, Tristan"]
[Black "Avanesyan, Davit"]
[Result "0-1"]
[WhiteElo "1955"]
[BlackElo "2142"]
[PlyCount "76"]
[EventDate "2023.12.30"]
[EventType "swiss"]
[EventCountry "FRA"]
[TimeControl "5400+30"]

1. e4 {[%emt 0:00:15]} c5 {[%emt 0:00:07]} 2. Nf3 {[%emt 0:00:35]} Nc6 {[%emt 0:00:07]} 3. d4 {[%emt 0:00:09]} cxd4 {[%emt 0:00:04]} 4. Nxd4 {[%emt 0:00:04]} e5 {[%emt 0:00:02]} 5. Nb5 {[%emt 0:00:08]} d6 {[%emt 0:00:01]} 6. N1c3 {[%emt 0:00:38]} a6 {[%emt 0:00:03]} 7. Na3 {[%emt 0:00:06]} b5 {[%emt 0:00:01]} 8. Nd5 {[%emt 0:00:12]} Nge7 {[%emt 1:34:05]} 9. c4 {[%emt 0:00:05]} Nd4 {[%emt 0:00:00]} 10. cxb5 {[%emt 0:00:10]} Nxd5 {[%emt 0:00:00]} 11. exd5 {[%emt 0:00:06]} Be7 {[%emt 0:00:00]} 12. Bd3 {[%emt 0:00:54]} O-O {[%emt 0:00:00]} 13. O-O {[%emt 0:00:27]} f5 {[%emt 0:00:00]} 14. bxa6 {[%emt 0:00:38]} Bxa6 {[%emt 0:00:00]} 15. Be3 {[%emt 0:14:15]} Bb7 {[%emt 0:00:00]} 16. Bc4 {[%emt 0:02:56]} Bf6 {[%emt 0:00:00]} 17. Bxd4 {[%emt 0:03:16]} exd4 {[%emt 0:00:00]} 18. Nb5 {[%emt 0:06:21]} Rc8 {[%emt 0:00:00]} 19. Qd3 {[%emt 0:05:33]} Qb6 {[%emt 0:00:00]} 20. Rfc1 {[%emt 0:09:20]} Qc5 {[%emt 0:00:00]} 21. Rc2 {[%emt 0:04:07]} Rfe8 {[%emt 0:00:00]} 22. a3 {[%emt 0:13:29]} Qb6 {[%emt 0:00:00]} 23. b3 {[%emt 0:04:13]} Re4 {[%emt 0:00:00]} 24. a4 {[%emt 0:01:38]} Rce8 {[%emt 0:00:00]} 25. Kf1 {[%emt 0:01:27]} Qc5 {[%emt 0:00:00]} 26. a5 {[%emt 0:01:31]} Ba6 {[%emt 0:00:00]} 27. Rcc1 {[%emt 0:05:23]} Bg5 {[%emt 0:00:00]} 28. Rd1 {[%emt 0:00:48]} R8e7 {[%emt 0:00:00]} 29. Ra4 {[%emt 0:03:06]} Bxb5 {[%emt 0:00:00]} 30. Bxb5 {[%emt 0:00:31]} Bd2 {[%emt 0:00:00]} 31. Qxd2 {[%emt 0:10:41]} Qxb5+ {[%emt 0:00:00]} 32. Rc4 {[%emt 0:00:56]} Qxb3 {[%emt 0:00:00]} 33. Rxd4 {[%emt 0:02:48]} Qb5+ {[%emt 0:00:00]} 34. Kg1 {[%emt 0:01:24]} Re2 {[%emt 0:00:00]} 35. Qc3 {[%emt 0:01:37]} Qc5 {[%emt 0:00:00]} 36. Qa1 {[%emt 0:08:05]} Qxd4 {[%emt 0:00:00]} 37. Qxd4 {[%emt 0:00:35]} Re1+ {[%emt 0:00:00]} 38. Rxe1 {[%emt 0:00:01]} Rxe1# {[%emt 0:15:00] Qc5} 0-1